bitfinex-derivatives/quotes_ETHF0:USTF0_20250428
["timestamp","ask_amount","ask_price","bid_price","bid_amount"]
[1745799191945,3.67531705,1779.5,1779.4,15.65151]
[1745799192137,2.47856705,1779.5,1779.4,15.65151]
[1745799192538,12.85486705,1780.0,1779.8,1.12333]
[1745799192738,12.85486705,1780.0,1779.9,3.2078]
[1745799192938,12.85486705,1780.0,1779.9,4.33109]
[1745799193335,2.47856705,1780.0,1779.9,4.33109]
[1745799193539,1.18844705,1780.0,1779.9,4.33109]
[1745799193736,7.05e-06,1780.0,1779.9,9.33109]
[1745799194239,7.05e-06,1780.0,1779.9,4.33109]
[1745799194552,7.05e-06,1780.0,1779.9,9.33109]
[1745799194939,10.0961,1780.6,1780.5,1.12292]
[1745799195140,4.8943,1780.8,1780.7,1.12279]
[1745799195446,16.2814299,1781.2,1781.1,1.12254]
[1745799196243,8.1627,1781.3,1781.1,1.12254]
[1745799196443,10.0961,1781.2,1781.1,1.12254]
[1745799197241,15.0961,1781.2,1781.0,1.12256]
[1745799197441,10.0961,1781.2,1781.1,1.12254]
[1745799198139,10.0961,1781.2,1781.1,4.33034]
[1745799198344,10.0961,1781.2,1781.1,1.12254]
[1745799198647,10.0961,1781.2,1781.1,4.33034]
[1745799200446,10.0961,1781.2,1781.1,1.12254]
[1745799200937,5.0042,1781.6,1781.5,1.12229]
[1745799201136,15.2069,1781.6,1780.9,3.2078]
[1745799201342,3.2078,1781.4,1781.2,1.12246]
[1745799201639,10.2027,1781.3,1781.2,1.12247]
[1745799201838,15.0841,1781.3,1780.8,5.91]
[1745799202042,15.0841,1781.3,1781.2,1.12247]
[1745799202639,15.0841,1781.3,1781.2,4.33027]
[1745799202837,10.2027,1781.3,1781.2,4.33027]
[1745799205056,8.212,1781.6,1781.5,1.12229]
[1745799205346,5.0042,1781.6,1781.5,1.12229]
[1745799206142,15.8922,1781.6,1781.1,1.12249]
[1745799206339,13.1953,1781.5,1781.1,1.12254]
[1745799206549,13.1953,1781.5,1781.2,1.12247]
[1745799206858,13.1953,1781.5,1781.0,0.2807]
[1745799207049,13.1953,1781.5,1781.1,1.12249]
[1745799207252,13.1953,1781.5,1781.2,1.12247]
[1745799207549,13.1953,1781.5,1781.4,1.12235]
[1745799207743,9.9875,1781.5,1781.4,1.12235]
[1745799211254,8.0892,1781.9,1781.7,1.12216]
[1745799211455,8.0892,1781.9,1781.3,15.4572]
[1745799211456,9.5155,1781.8,1781.5,3.2078]
[1745799211644,9.5155,1781.8,1781.5,4.33005]
[1745799211847,9.5155,1781.8,1781.5,3.2078]
[1745799212551,10.63764,1781.8,1781.3,3.2078]
[1745799212856,3.2078,1781.5,1781.1,16.2169]
[1745799213060,9.5624,1781.4,1781.1,5.875]
[1745799213252,9.5624,1781.4,1781.1,6.99753]
[1745799213854,5.888,1781.8,1781.2,3.2078]
[1745799214056,9.5624,1781.7,1781.6,1.12217]
[1745799214652,9.5624,1781.7,1781.5,10.3419]
[1745799214847,9.5624,1781.7,1781.6,1.12222]
[1745799215862,9.5624,1781.7,1781.6,4.33002]
[1745799216049,4.8814,1781.9,1781.6,3.2078]
[1745799216250,6.23792,1782.3,1781.9,1.12203]
[1745799216251,9.5031,1782.0,1781.9,1.12203]
[1745799216452,9.5031,1782.0,1781.9,11.59723]
[1745799216656,5.1161,1782.3,1782.0,1.12196]
[1745799216861,5.1161,1782.3,1782.1,1.12189]
[1745799216862,14.6192,1782.3,1782.1,1.12189]
[1745799217052,9.5031,1782.3,1782.1,1.12185]
[1745799217356,9.5031,1782.3,1782.1,10.4752]
[1745799217560,9.5031,1782.3,1782.2,1.12184]
[1745799217760,9.5031,1782.3,1782.1,10.4752]
[1745799217955,5.888,1782.4,1782.3,1.12178]
[1745799218346,5.888,1782.4,1782.3,11.30198]
[1745799218946,9.5031,1782.7,1782.3,15.1802]
[1745799219257,3.2078,1782.8,1782.6,1.12158]
[1745799219561,3.2078,1782.8,1782.3,5.873]
[1745799219857,3.2078,1782.8,1781.9,9.0808]
[1745799219858,1.12169,1782.5,1781.9,9.0808]
[1745799220158,1.1218,1782.3,1781.9,5.873]
[1745799220354,1.1218,1782.3,1781.9,6.99501]
[1745799220355,9.4326,1782.2,1781.9,6.99501]
[1745799220554,9.4326,1782.2,1782.0,1.40245]
[1745799220755,9.4326,1782.2,1782.0,0.2805]
[1745799221655,9.4326,1782.2,1782.1,1.12191]
[1745799221866,9.4326,1782.2,1782.0,0.2805]
[1745799222154,3.2078,1782.1,1782.0,0.2805]
[1745799222459,1.12218,1781.7,1781.3,1.12236]
[1745799222663,1.12218,1781.7,1781.0,9.39091687]
[1745799222664,3.2078,1781.6,1781.0,3.2078]
[1745799222862,13.0006,1781.6,1781.3,1.12239]
[1745799223256,18.8886,1781.6,1781.1,10.1239]
[1745799223461,20.01084,1781.6,1781.2,1.12245]
[1745799223660,1.12229,1781.5,1781.1,11.52711]
[1745799223957,9.7928,1781.4,1781.1,11.52711]
[1745799224152,9.7928,1781.4,1781.1,10.4046]
[1745799224354,1.12255,1781.1,1780.6,5.641]
[1745799224658,10.1829,1781.0,1780.8,1.1227]
[1745799225057,10.1829,1781.0,1780.9,1.12266]
[1745799225363,3.2078,1781.5,1781.0,1.12258]
[1745799225550,4.33024,1781.3,1780.8,4.3305]
[1745799225755,10.1829,1781.2,1780.9,10.2827]
[1745799226559,10.1829,1781.2,1781.0,1.1226]
[1745799226762,10.1829,1781.2,1781.1,10.2827]
[1745799227361,11.30538,1781.2,1781.0,3.2078]
[1745799227565,10.1829,1781.2,1781.0,3.2078]
[1745799228455,4.33013,1781.5,1781.1,9.4863]
[1745799228655,9.9422,1781.4,1781.1,9.4863]
[1745799229563,11.06457,1781.4,1781.1,9.4863]
[1745799229760,1.12242,1781.3,1781.1,9.4863]
[1745799229963,1.12247,1781.2,1781.1,9.4863]
[1745799230865,9.9422,1781.4,1781.0,3.2078]
[1745799231162,9.9422,1781.4,1781.0,4.33036]
[1745799231364,1.12243,1781.3,1781.1,10.0338]
[1745799231558,1.12247,1781.2,1781.0,3.2078]
[1745799232058,1.12254,1781.1,1781.0,3.2078]
[1745799232257,3.2078,1781.3,1780.8,3.2078]
[1745799232466,10.3393,1781.2,1780.8,13.2416]
[1745799232659,10.3393,1781.2,1780.9,10.0338]
[1745799232860,1.12256,1781.1,1780.9,10.0338]
[1745799233056,10.3393,1781.2,1781.0,1.12256]
[1745799233363,5.0155,1781.3,1781.0,4.33036]
[1745799233568,5.0155,1781.3,1781.1,9.8348]
[1745799234064,6.13793,1781.3,1781.1,9.8348]
[1745799234563,5.0155,1781.3,1781.1,10.95733]
[1745799234769,5.0155,1781.3,1781.1,10.95732]
[1745799234971,3.2078,1781.5,1781.4,1.12235]
[1745799235270,10.053,1781.9,1781.8,1.1221]
[1745799235465,7.00988,1782.2,1781.9,1.12202]
[1745799235665,17.06288,1782.2,1782.0,9.8348]
[1745799235972,15.941,1782.2,1782.0,10.95676]
[1745799236268,17.06285,1782.2,1782.0,9.8348]
[1745799237571,1.12191,1782.1,1782.0,9.8348]
[1745799237772,1.122,1782.0,1781.7,1.12213]
[1745799237972,11.10934,1782.1,1781.7,10.4398]
[1745799238174,9.9874,1782.1,1781.8,1.12209]
[1745799238473,9.9874,1782.1,1781.9,11.56183]
[1745799238675,9.9874,1782.1,1781.9,10.4398]
[1745799240472,9.9874,1782.1,1781.8,4.32989]
[1745799240473,1.12199,1782.0,1781.8,3.2078]
[1745799240865,5.888,1782.2,1781.8,3.2078]
[1745799241066,5.888,1782.2,1781.9,9.9849]
[1745799241371,10.3578,1782.1,1781.9,9.9849]
[1745799241767,1.12218,1781.7,1781.4,5.642]
[1745799241973,10.3578,1781.6,1781.3,13.1927]
[1745799242173,10.3578,1781.6,1781.3,14.3151]
[1745799242472,10.3578,1781.6,1781.4,11.10725]
[1745799243171,10.3578,1781.6,1781.4,9.9849]
[1745799243371,10.3578,1781.6,1781.4,11.10719]
[1745799243573,10.3578,1781.6,1781.4,9.9849]
[1745799243875,4.32993,1781.8,1781.4,11.10723]
[1745799244466,10.2009,1781.7,1781.4,11.10723]
[1745799244868,8.69272,1782.2,1781.4,9.9849]
[1745799244869,1.12208,1781.9,1781.4,9.9849]
[1745799245067,1.12208,1781.9,1781.5,4.33002]
[1745799245265,1.1221,1781.8,1781.6,10.457]
[1745799245471,10.2009,1781.7,1781.3,13.6648]
[1745799245769,16.16959,1781.7,1781.3,4.33021]
[1745799245961,10.2009,1781.7,1781.4,10.62895]
[1745799246163,11.32306,1781.7,1781.4,10.62895]
[1745799246366,10.2009,1781.7,1781.4,10.62895]
[1745799246668,1.12229,1781.5,1781.4,9.5066]
[1745799246864,1.12225,1781.6,1781.3,3.2078]
[1745799247171,9.6456,1781.5,1781.3,3.2078]
[1745799247974,9.6456,1781.5,1781.3,4.33021]
[1745799248572,9.6456,1781.5,1781.3,3.2078]
[1745799248967,1.12254,1781.1,1780.7,9.23653]
[1745799249168,1.1226,1781.0,1780.7,9.23657]
[1745799249371,3.2078,1781.2,1780.7,3.2078]
[1745799249573,1.12273,1780.8,1780.7,3.2078]
[1745799249772,10.2513,1780.9,1780.7,3.2078]
[1745799250077,10.2513,1780.9,1780.7,14.59229]
[1745799250268,10.2513,1780.9,1780.7,13.4695]
[1745799250662,10.2513,1780.9,1780.7,14.59227]
[1745799250875,7.01057,1781.1,1780.7,14.59223]
[1745799251068,17.26187,1781.1,1780.7,14.59223]
[1745799251471,16.28256842,1781.4,1781.0,1.12259]
[1745799251769,1.12245,1781.3,1781.1,10.2617]
[1745799252075,11.35525,1781.3,1781.1,10.2617]
[1745799252475,10.2328,1781.3,1780.8,1.12271]
[1745799252668,3.2078,1781.2,1780.9,10.3024]
[1745799252870,10.2328,1781.1,1780.9,10.3024]
[1745799253377,3.2078,1781.2,1780.9,10.3024]
[1745799253674,1.1226,1781.0,1780.9,3.2078]
[1745799253865,1.12279,1780.7,1780.6,0.2808]
[1745799254071,1.12277,1780.8,1780.5,10.3024]
[1745799254274,11.35559,1780.7,1780.5,10.3024]
[1745799254569,1.12285,1780.6,1780.3,8.6098]
[1745799254769,1.12285,1780.6,1780.3,15.5627]
[1745799255169,11.21592,1780.5,1780.3,15.5627]
[1745799255369,10.093,1780.5,1780.3,15.5627]
[1745799255577,10.093,1780.5,1780.3,10.1607]
[1745799256779,11.21594,1780.5,1780.3,10.1607]
[1745799256980,1.12298,1780.4,1780.3,10.1607]
[1745799257177,10.093,1780.5,1780.2,0.2808]
[1745799257378,1.12304,1780.3,1780.2,0.2808]
[1745799257572,1.1231,1780.2,1780.1,3.2078]
[1745799257773,10.417,1780.2,1780.1,3.2078]
[1745799258678,11.5401,1780.2,1780.1,3.2078]
[1745799258877,1.12323,1780.0,1779.9,0.2809]
[1745799259479,11.54023,1780.0,1779.9,0.2809]
[1745799259677,14.74803,1780.0,1779.9,0.2809]
[1745799259978,13.6248,1780.0,1779.5,9.8791]
[1745799260282,1.12337,1779.8,1779.5,9.8791]
[1745799260481,10.417,1779.7,1779.5,9.8791]
[1745799261582,1.12355,1779.5,1779.4,0.2809]
[1745799261983,10.89965,1779.5,1779.1,14.9472]
[1745799262174,1.12361,1779.4,1779.1,14.9472]
[1745799262381,9.7761,1779.3,1779.1,14.9472]
[1745799262786,9.7761,1779.3,1779.1,10.667]
[1745799262985,9.7761,1779.3,1779.1,9.5432]
[1745799263185,9.7761,1779.3,1779.1,10.66696]
[1745799263385,9.7761,1779.3,1779.1,9.5432]
[1745799264984,3.2078,1779.6,1779.2,3.2078]
[1745799265186,3.2078,1779.6,1779.3,10.1782]
[1745799265380,3.2078,1779.6,1779.3,11.30186]
[1745799265580,4.33128,1779.6,1779.3,10.1782]
[1745799265785,14.71138,1779.6,1779.3,10.1782]
[1745799265977,13.5879,1779.6,1779.3,11.30186]
[1745799266378,13.5879,1779.6,1779.3,10.1782]
[1745799266579,14.71142,1779.6,1779.3,10.1782]
[1745799267788,1.12369,1779.3,1779.0,3.4888]
[1745799268096,3.2078,1779.6,1779.3,1.12367]
[1745799268295,10.8354,1779.7,1779.4,3.2078]
[1745799268493,13.6768,1779.9,1779.4,3.2078]
[1745799268684,5.888,1780.0,1779.9,1.12329]
[1745799268996,17.08919842,1780.2,1779.8,4.33112]
[1745799269293,1.12317,1780.1,1779.9,10.0954]
[1745799269483,1.12323,1780.0,1779.8,3.2078]
[1745799269686,10.469,1780.0,1779.8,3.2078]
[1745799269888,10.469,1780.0,1779.9,10.0954]
[1745799270597,5.49706842,1780.2,1780.0,1.12319]
[1745799270797,5.49706842,1780.2,1780.1,9.727]
[1745799270993,6.62016842,1780.2,1780.1,9.727]
[1745799271292,1.12318,1780.1,1779.8,3.2078]
[1745799271596,1.12324,1780.0,1779.8,3.2078]
[1745799271786,10.451,1779.9,1779.8,3.2078]
[1745799272993,3.2078,1780.2,1779.8,3.2078]
[1745799273292,3.2078,1780.6,1780.0,3.2078]
[1745799273501,9.482,1780.6,1780.4,1.12296]
[1745799273697,3.2078,1780.8,1780.5,10.1818]
[1745799273895,12.6898,1780.8,1780.5,10.1818]
[1745799274096,13.81254,1780.8,1780.5,10.1818]
[1745799274290,1.1228,1780.7,1780.5,10.1818]
[1745799274490,3.2078,1780.6,1780.3,3.2078]
[1745799274694,1.12298,1780.4,1780.2,10.1818]
[1745799274890,9.482,1780.5,1780.2,10.1818]
[1745799275094,9.482,1780.5,1780.3,1.12299]
[1745799275291,4.33056,1780.8,1780.4,10.1818]
[1745799275497,9.482,1780.7,1780.4,10.1818]
[1745799275694,9.482,1780.7,1780.1,4.33093]
[1745799275999,1.12289,1780.6,1780.2,1.12307]
[1745799276199,9.6325,1780.5,1780.3,10.109]
[1745799276590,9.6325,1780.5,1780.3,11.23203]
[1745799276891,9.6325,1780.5,1780.3,10.109]
[1745799277299,3.2078,1780.8,1780.3,10.109]
[1745799277501,9.6325,1780.7,1780.3,13.3168]
[1745799277698,4.33055,1780.8,1780.4,11.23194]
[1745799277898,1.1228,1780.7,1780.4,10.109]
[1745799278297,1.12286,1780.6,1780.4,10.109]
[1745799278696,9.6325,1780.7,1780.4,10.109]
[1745799278895,4.33053,1780.8,1780.5,1.1229]
[1745799279099,3.2078,1780.8,1780.6,10.039]
[1745799279796,9.6325,1780.9,1780.6,11.16184]
[1745799280101,9.6325,1780.9,1780.6,11.44264]
[1745799280600,10.75517,1780.9,1780.6,11.44264]
[1745799280801,10.75517,1780.9,1780.6,10.3198]
[1745799281001,9.6325,1780.9,1780.6,11.44263]
[1745799281197,3.2078,1781.1,1780.6,15.4968]
[1745799281391,3.2078,1781.1,1780.9,1.12263]
[1745799281595,10.3989,1781.2,1780.9,1.12263]
[1745799281596,4.33021,1781.3,1781.0,10.039]
[1745799282399,10.3989,1781.4,1781.0,14.36939]
[1745799282699,10.3989,1781.4,1781.0,14.36937]
[1745799283101,9.0958,1781.5,1781.0,13.2468]
[1745799283300,16.40226842,1781.7,1781.2,4.33023]
[1745799283503,1.12223,1781.6,1781.3,10.4589]
[1745799283904,11.38506842,1781.8,1781.5,1.12225]
[1745799284102,11.38506842,1781.8,1781.6,10.4589]
[1745799284401,5.49706842,1781.8,1781.6,10.4589]
[1745799286004,15.90286842,1781.8,1781.6,10.4589]
[1745799286317,5.49706842,1781.8,1781.6,11.5811]
[1745799286703,5.49706842,1781.8,1781.7,4.32996]
[1745799286903,10.05284105,1782.4,1781.9,1.12198]
[1745799286904,1.12978105,1782.4,1781.9,1.12198]
[1745799287105,1.12978105,1782.4,1781.9,9.50578]
[1745799287306,11.52758,1782.3,1782.0,10.3885]
[1745799287507,1.12188,1782.2,1781.7,1.12213]
[1745799287708,10.4058,1782.1,1781.8,1.12207]
[1745799287909,10.4058,1782.1,1781.9,10.3885]
[1745799288510,4.32963,1782.3,1781.9,10.3885]
[1745799288812,4.32963,1782.3,1781.9,11.51053]
[1745799289113,14.13833,1782.3,1781.9,11.51053]
[1745799290209,13.0165,1782.3,1781.9,11.51053]
[1745799290411,14.1383,1782.3,1781.9,11.51053]
[1745799291007,13.0165,1782.3,1781.9,10.3885]
[1745799291203,9.8087,1782.3,1782.1,1.12187]
[1745799291406,0.00804105,1782.4,1782.2,10.58784]
[1745799291604,0.00804105,1782.4,1782.3,1.12178]
[1745799292206,0.00804105,1782.4,1782.2,9.466]
[1745799292407,0.00804105,1782.4,1782.2,10.5878]
[1745799292808,0.00804105,1782.4,1782.2,9.466]
[1745799293206,10.85248105,1782.4,1782.2,9.466]
[1745799294005,9.73074105,1782.4,1782.2,9.466]
[1745799294209,10.85246105,1782.4,1782.2,9.466]
[1745799294712,3.2078,1782.3,1781.6,8.1269]
[1745799295014,3.2078,1782.1,1781.6,3.2078]
[1745799295210,1.12178,1782.3,1781.9,1.12202]
[1745799295515,1.12187,1782.2,1782.0,9.6743]
[1745799295709,1.12185,1782.2,1782.0,9.6743]
[1745799295912,11.58772,1782.3,1782.0,9.6743]
[1745799296211,1.12981105,1782.4,1782.2,3.2078]
[1745799296512,1.12981105,1782.4,1782.3,9.6743]
[1745799297908,0.00804105,1782.4,1782.3,9.6743]
[1745799298113,1.12178,1782.3,1782.1,3.2078]
[1745799298312,1.12178,1782.3,1782.0,10.3366]
[1745799298512,9.5757,1782.3,1782.0,10.3366]
[1745799298712,1.12980105,1782.4,1782.0,10.3366]
[1745799298915,1.12980105,1782.4,1782.1,1.1219]
[1745799299126,1.12980105,1782.4,1782.2,10.3366]
[1745799299515,0.00804105,1782.4,1781.9,3.2078]
[1745799299817,0.00804105,1782.4,1782.3,4.32958]
[1745799300017,1.12141,1782.9,1782.5,1.12163]
[1745799300319,9.5757,1783.0,1782.6,13.5444]
[1745799300513,6.61831842,1783.2,1782.7,14.7647]
[1745799300714,6.61831842,1783.2,1782.7,15.88621]
[1745799300715,17.04282842,1783.2,1782.7,15.88621]
[1745799300915,17.04278842,1783.2,1782.8,3.2078]
[1745799301115,1.1214,1782.9,1782.8,3.2078]
[1745799301313,1.12159,1782.6,1782.5,9.7597]
[1745799301517,1.12166,1782.5,1782.4,8.2128]
[1745799301715,1.12164,1782.6,1782.4,8.2128]
[1745799301912,1.12157,1782.7,1782.4,8.2128]
[1745799302113,10.4245,1783.1,1782.6,3.2078]
[1745799302417,1.12134,1783.0,1782.7,9.7597]
[1745799302719,10.4245,1783.1,1782.7,9.7597]
[1745799303016,1.12166,1782.5,1782.4,8.2128]
[1745799303214,1.12165,1782.6,1782.2,10.88152]
[1745799303417,1.12162,1782.6,1782.2,12.9675]
[1745799303617,15.5265,1782.9,1782.2,12.9675]
[1745799303618,9.6385,1782.7,1782.3,1.12176]
[1745799303920,9.0958,1783.2,1782.6,4.32937]
[1745799304123,12.8463,1783.0,1782.6,0.2804]
[1745799304513,1.12153,1782.7,1782.6,0.2804]
[1745799304823,4.32927,1782.8,1782.6,0.2804]
[1745799305013,9.6385,1782.7,1782.6,0.2804]
[1745799305213,9.6385,1782.7,1782.6,10.7251]
[1745799305426,9.6385,1782.7,1782.6,11.84669]
[1745799305718,5.888,1782.9,1782.7,1.12151]
[1745799305921,9.6385,1783.1,1782.8,11.56617]
[1745799306118,9.6385,1783.1,1782.9,1.1214]
[1745799306314,9.6385,1783.1,1783.0,10.4447]
[1745799306519,1.12138,1783.0,1782.8,10.3729]
[1745799306718,10.374,1782.9,1782.8,10.3729]
[1745799306918,10.374,1782.9,1782.6,0.2804]
[1745799307110,1.1215,1782.8,1782.6,0.2804]
[1745799307309,11.49553,1782.7,1782.6,0.2804]
[1745799308618,1.12173,1782.4,1782.2,15.3769]
[1745799308819,11.49578,1782.3,1782.2,15.3769]
[1745799309116,1.12191,1782.1,1781.9,8.2108]
[1745799309324,9.0958,1782.6,1782.1,1.12188]
[1745799309620,10.3625,1782.4,1782.1,4.32968]
[1745799309821,10.3625,1782.4,1782.2,11.27364]
[1745799310020,10.3625,1782.4,1782.3,1.12178]
[1745799310220,5.888,1782.6,1782.3,1.12178]
[1745799310526,10.3625,1782.5,1782.4,10.1518]
[1745799310823,5.888,1782.6,1782.4,11.27352]
[1745799311024,5.888,1782.6,1782.4,11.27347]
[1745799311224,10.3625,1782.7,1782.4,11.27347]
[1745799311424,1.12138,1783.0,1782.6,3.2078]
[1745799311623,1.1215,1782.8,1782.6,3.2078]
[1745799311929,10.3625,1782.7,1782.6,3.2078]
[1745799312127,10.3625,1783.0,1782.6,3.2078]
[1745799312424,1.12142,1782.9,1782.7,10.1518]
[1745799312626,9.6022,1782.8,1782.7,10.1518]
[1745799313511,0.0115,1782.9,1782.7,10.1518]
[1745799314915,0.0115,1782.9,1782.7,16.27631]
[1745799315123,0.0115,1782.9,1782.8,3.2078]
[1745799316121,5.888,1783.9,1782.8,8.2078]
[1745799316323,9.4593,1783.5,1783.3,3.2078]
[1745799316633,4.32872,1783.7,1783.4,10.2439]
[1745799316927,13.78802,1783.7,1783.4,10.2439]
[1745799317115,12.6671,1783.7,1783.4,11.36499]
[1745799317315,5.1716,1783.9,1783.6,1.12092]
[1745799317522,9.4593,1784.0,1783.7,10.2439]
[1745799317722,10.58014,1783.8,1783.7,10.2439]
[1745799318225,18.24457197,1784.1,1783.7,10.2439]
[1745799318425,1.12073,1784.0,1783.7,10.2439]
[1745799318624,10.409,1783.9,1783.7,10.2439]
[1745799318930,10.409,1783.9,1783.7,11.3648]
[1745799319123,10.409,1783.9,1783.6,5.002]
[1745799319319,1.1209,1783.7,1783.6,5.002]
[1745799319525,13.6168,1783.9,1783.4,10.3011]
[1745799319919,10.409,1783.9,1783.4,10.3011]
[1745799320119,10.409,1783.9,1783.5,3.2078]
[1745799320326,1.12093,1783.7,1783.3,9.33093]
[1745799320526,13.6168,1783.9,1783.3,18.5109]
[1745799320722,1.12105,1783.5,1783.3,5.002]
[1745799321020,1.12105,1783.5,1783.1,1.12125]
[1745799321021,11.53013,1783.4,1783.1,1.12126]
[1745799321216,10.409,1783.4,1783.2,1.12116]
[1745799321419,11.53011,1783.4,1783.1,3.2078]
[1745799321630,10.409,1783.4,1783.2,1.1212]
[1745799322024,10.409,1783.4,1783.2,9.9036]
[1745799322225,10.409,1783.4,1783.2,11.0248]
[1745799322625,11.53009,1783.4,1783.2,9.9036]
[1745799322828,10.409,1783.4,1782.9,3.2078]
[1745799323132,1.1213,1783.1,1782.9,3.2078]
[1745799323327,11.20474,1783.0,1782.9,3.2078]
[1745799323524,1.12144,1782.9,1782.8,3.2078]
[1745799323725,11.20478,1783.0,1782.8,3.2078]
[1745799323926,1.12147,1782.8,1782.7,5.002]
[1745799324120,15.2305,1783.0,1782.7,5.002]
[1745799324326,15.2305,1783.0,1782.8,11.02506]
[1745799324527,3.2078,1783.1,1782.9,1.1214]
[1745799324726,9.5548,1783.2,1782.8,13.1114]
[1745799324929,6.07365,1783.5,1783.0,3.2078]
[1745799325127,15.62844,1783.5,1783.2,3.2078]
[1745799325328,15.62844,1783.5,1783.3,9.8539]
[1745799325825,9.5548,1783.5,1783.3,10.97503]
[1745799326027,4.32867,1783.8,1783.4,4.32889]
[1745799326226,9.5548,1783.7,1783.5,9.8539]
[1745799326532,10.67571,1783.7,1783.5,9.8539]
[1745799326834,10.6757,1783.7,1783.5,9.8539]
[1745799327030,9.5548,1783.7,1783.5,9.8539]
[1745799327233,9.5548,1783.7,1783.5,10.97492]
[1745799327427,3.65170355,1783.8,1783.5,14.7859]
[1745799327629,3.65170355,1783.8,1783.5,15.90688]
[1745799327936,3.65170355,1783.8,1783.7,1.1209]
[1745799328335,3.65170355,1783.8,1783.7,15.5885]
[1745799328526,3.65170355,1783.8,1783.7,9.4676]
[1745799328928,3.65170355,1783.8,1783.7,15.5885]
[1745799329426,3.1101446,1783.8,1783.7,15.5885]
[1745799329632,13.3596446,1784.4,1783.7,14.4676]
[1745799329831,13.3596446,1784.4,1784.1,4.32844]
[1745799330141,3.1101446,1784.4,1784.2,9.4676]
[1745799330836,12.5591446,1784.4,1784.2,9.4676]
[1745799331339,3.1101446,1784.4,1784.2,9.4676]
[1745799331739,4.2306246,1784.4,1784.2,9.4676]
[1745799331937,12.5591446,1784.4,1784.2,9.4676]
[1745799332128,3.1101446,1784.4,1784.2,9.4676]
[1745799332334,3.1101446,1784.4,1784.2,15.58815]
[1745799332530,3.1101446,1784.4,1784.2,20.72825]
[1745799332736,3.1101446,1784.4,1784.2,14.6077]
[1745799333134,3.1101446,1784.4,1784.2,15.72829]
[1745799333834,12.5591446,1784.4,1784.2,15.72828]
[1745799334046,13.6796446,1784.4,1784.2,9.4676]
[1745799334433,1.12059,1784.2,1784.1,4.931]
[1745799334834,1.12055,1784.3,1784.1,4.931]
[1745799335034,10.8612,1784.4,1784.1,4.931]
[1745799335340,10.8612,1784.4,1784.1,8.1388]
[1745799335535,3.23083,1784.6,1784.3,1.1205]
[1745799335735,0.02303,1784.6,1784.4,10.73903]
[1745799335946,12.8112,1784.8,1784.5,1.1204]
[1745799336143,13.93144,1784.8,1784.6,9.6186]
[1745799336434,4.9732,1785.0,1784.6,9.6186]
[1745799336640,17.7844,1785.0,1784.6,12.8264]
[1745799336944,18.90452,1785.0,1784.6,13.9467]
[1745799337146,14.5766,1785.0,1784.5,5.2101]
[1745799337441,14.5766,1785.0,1784.9,1.12015]
[1745799337645,9.6034,1785.0,1784.9,1.12015]
[1745799338049,9.6034,1785.0,1784.6,3.2078]
[1745799338249,9.6034,1785.0,1784.7,11.46527]
[1745799339145,3.2078,1785.2,1784.7,10.345]
[1745799339439,3.2078,1785.0,1784.5,0.2801]
[1745799339645,1.12034,1784.6,1784.5,0.2801]
[1745799340445,11.19104,1784.6,1784.5,0.2801]
[1745799340942,16.19104,1784.6,1784.5,0.2801]
[1745799341146,1.12052,1784.3,1784.2,4.929]
[1745799341337,21.07939,1784.6,1783.8,8.1368]
[1745799341338,8.346,1784.5,1783.8,8.1368]
[1745799341650,1.12067,1784.1,1783.8,9.25764]
[1745799341947,10.0707,1784.0,1783.9,1.12078]
[1745799342136,3.2078,1784.3,1784.1,1.12062]
[1745799342338,10.0707,1784.4,1783.9,10.0308]
[1745799342546,1.12054,1784.3,1784.0,0.0066]
[1745799342751,10.0707,1784.4,1784.0,0.0066]
[1745799342752,10.0707,1784.2,1784.0,11.15811]
[1745799343043,5.1382,1784.5,1784.2,1.12057]
[1745799343245,5.1382,1784.5,1784.3,10.4511]
[1745799343444,9.6336,1784.6,1784.4,1.1204]
[1745799343651,9.6336,1784.6,1784.5,10.4511]
[1745799344248,1.12024,1784.8,1784.5,13.6589]
[1745799344449,9.6336,1784.8,1784.5,13.6589]
[1745799344649,1.12029,1784.7,1784.5,13.6589]
[1745799344843,9.6336,1784.6,1784.5,13.6589]
[1745799345245,6.25839,1784.9,1784.5,13.6589]
[1745799345449,1.12029,1784.7,1784.5,13.6589]
[1745799345654,10.75385,1784.8,1784.5,13.6589]
[1745799346350,1.12028,1784.7,1784.5,13.6589]
[1745799346651,9.6336,1784.8,1784.5,13.6589]
[1745799346652,10.2177,1784.6,1784.5,13.6589]
[1745799347446,8.70486842,1785.2,1784.5,13.6589]
[1745799347752,10.2177,1785.0,1784.6,4.928]
[1745799348253,1.12019,1784.9,1784.6,4.928]
[1745799348448,10.2177,1784.8,1784.6,4.928]
[1745799348748,10.2177,1784.8,1784.5,3.2078]
[1745799348953,3.2078,1784.7,1784.3,4.928]
[1745799349154,1.12042,1784.5,1784.3,4.928]
[1745799349353,9.6695,1784.4,1784.3,4.928]
[1745799349554,9.6695,1784.4,1784.3,6.04852]
[1745799350142,9.6695,1784.4,1784.3,4.928]
[1745799350545,9.6695,1784.4,1784.3,6.04852]
[1745799350745,9.6695,1784.4,1784.3,4.928]
[1745799351144,3.2078,1784.7,1784.4,1.12043]
[1745799351358,10.78982,1784.7,1784.4,3.2078]
[1745799351750,9.6695,1784.7,1784.4,13.0989]
[1745799351950,9.6695,1784.7,1784.4,14.21932]